[Event "Early-Titled-Tuesday-Blitz-October-03-2023"]
[Site "Chess.com"]
[Date "2023.10.03"]
[Round "6"]
[White "Witik"]
[Black "NikolaGry"]
[Result "0-1"]
[WhiteElo "2826"]
[BlackElo "2722"]
[TimeControl "180+1"]
[EndTime "9:06:43 PDT"]
[Termination "NikolaGry won by resignation"]

1. d4 {[%clk 0:02:59.6]} 1... d5 {[%clk 0:02:59.6]} 2. c4 {[%clk 0:02:59.6]}
2... Nc6 {[%clk 0:02:59.7]} 3. Nc3 {[%clk 0:02:57.7]} 3... dxc4 {[%clk
0:02:56.6]} 4. d5 {[%clk 0:02:56.7]} 4... Ne5 {[%clk 0:02:56.8]} 5. Bf4 {[%clk
0:02:32.6]} 5... Ng6 {[%clk 0:02:56.2]} 6. Bg3 {[%clk 0:02:32.3]} 6... e5 {[%clk
0:02:56.2]} 7. Nf3 {[%clk 0:02:10.3]} 7... Bd6 {[%clk 0:02:52.4]} 8. Nd2 {[%clk
0:02:07.8]} 8... f5 {[%clk 0:02:47.1]} 9. h3 {[%clk 0:02:04.3]} 9... Nf6 {[%clk
0:02:31.3]} 10. Nxc4 {[%clk 0:02:02.9]} 10... O-O {[%clk 0:02:30.4]} 11. e3
{[%clk 0:01:59.8]} 11... f4 {[%clk 0:02:24.2]} 12. Bh2 {[%clk 0:01:59.5]} 12...
Bb4 {[%clk 0:02:17.8]} 13. Qb3 {[%clk 0:01:55.4]} 13... Bxc3+ {[%clk 0:02:09.7]}
14. bxc3 {[%clk 0:01:56.3]} 14... Qxd5 {[%clk 0:02:06.2]} 15. Rd1 {[%clk
0:01:52.6]} 15... Qf7 {[%clk 0:02:03.8]} 16. Be2 {[%clk 0:01:32.7]} 16... Be6
{[%clk 0:01:55.2]} 17. O-O {[%clk 0:01:31.8]} 17... Ne4 {[%clk 0:01:40.8]} 18.
Qb4 {[%clk 0:01:21.7]} 18... Ng5 {[%clk 0:01:32.1]} 19. Nxe5 {[%clk 0:01:07.3]}
19... Nxe5 {[%clk 0:01:28.7]} 20. exf4 {[%clk 0:01:07]} 20... Nef3+ {[%clk
0:01:01.6]} 21. gxf3 {[%clk 0:00:59]} 21... Nxh3+ {[%clk 0:00:59]} 22. Kh1
{[%clk 0:00:55.1]} 22... Qh5 {[%clk 0:00:52]} 23. f5 {[%clk 0:00:46.6]} 23...
Rxf5 {[%clk 0:00:41]} 24. Qxb7 {[%clk 0:00:40.6]} 24... Raf8 {[%clk 0:00:37.7]}
25. Rd4 {[%clk 0:00:30.5]} 25... Nf4 {[%clk 0:00:33.2]} 26. Rxf4 {[%clk
0:00:23.2]} 26... Rxf4 {[%clk 0:00:32.5]} 27. Qxc7 {[%clk 0:00:23.5]} 27... Bd5
{[%clk 0:00:28.3]} 28. Rg1 {[%clk 0:00:20.4]} 28... Bxf3+ {[%clk 0:00:26.5]} 29.
Bxf3 {[%clk 0:00:20.8]} 29... Qxf3+ {[%clk 0:00:26.6]} 30. Rg2 {[%clk
0:00:21.4]} 30... Rg4 {[%clk 0:00:24.6]} 31. Bg3 {[%clk 0:00:17.8]} 31... h5
{[%clk 0:00:22.4]} 32. Qb7 {[%clk 0:00:03.6]} 32... Qxb7 {[%clk 0:00:21.2]} 0-1

[Event "Early-Titled-Tuesday-Blitz-October-03-2023"]
[Site "Chess.com"]
[Date "2023.10.03"]
[Round "6"]
[White "tylityli"]
[Black "isaak2009"]
[Result "0-1"]
[WhiteElo "2347"]
[BlackElo "2551"]
[TimeControl "180+1"]
[EndTime "9:06:45 PDT"]
[Termination "isaak2009 won on time"]

1. d4 {[%clk 0:02:02.4]} 1... Nf6 {[%clk 0:02:58]} 2. c4 {[%clk 0:02:01.9]} 2...
c6 {[%clk 0:02:55]} 3. Nc3 {[%clk 0:02:01.3]} 3... d5 {[%clk 0:02:55.3]} 4. cxd5
{[%clk 0:02:00.8]} 4... cxd5 {[%clk 0:02:56.2]} 5. Bf4 {[%clk 0:02:01.1]} 5...
Nc6 {[%clk 0:02:52.5]} 6. e3 {[%clk 0:02:01.2]} 6... Bg4 {[%clk 0:02:40.8]} 7.
Qb3 {[%clk 0:02:00.5]} 7... Na5 {[%clk 0:02:40.4]} 8. Qa4+ {[%clk 0:02:00.5]}
8... Bd7 {[%clk 0:02:40.4]} 9. Qc2 {[%clk 0:02:00.6]} 9... Rc8 {[%clk
0:02:38.5]} 10. Bd3 {[%clk 0:02:00.5]} 10... e6 {[%clk 0:02:36.9]} 11. Nf3
{[%clk 0:02:00.3]} 11... a6 {[%clk 0:02:30.4]} 12. O-O {[%clk 0:01:59.2]} 12...
b5 {[%clk 0:02:30.5]} 13. Qe2 {[%clk 0:01:58.1]} 13... Be7 {[%clk 0:02:25.7]}
14. Rfc1 {[%clk 0:01:51.8]} 14... O-O {[%clk 0:02:20.3]} 15. Ne5 {[%clk
0:01:51.2]} 15... Nc4 {[%clk 0:02:14]} 16. Nd1 {[%clk 0:01:41.2]} 16... Be8
{[%clk 0:01:21.3]} 17. b3 {[%clk 0:01:33.2]} 17... Nd6 {[%clk 0:01:21.4]} 18.
Rxc8 {[%clk 0:01:31.8]} 18... Qxc8 {[%clk 0:01:22.3]} 19. Qc2 {[%clk 0:01:29.5]}
19... Qxc2 {[%clk 0:01:19.2]} 20. Bxc2 {[%clk 0:01:29.1]} 20... Nh5 {[%clk
0:01:17.9]} 21. Bg3 {[%clk 0:01:24.5]} 21... Nxg3 {[%clk 0:01:17.7]} 22. hxg3
{[%clk 0:01:25.4]} 22... f6 {[%clk 0:01:18.5]} 23. Nd3 {[%clk 0:01:14.9]} 23...
Ne4 {[%clk 0:01:18.7]} 24. g4 {[%clk 0:01:09.9]} 24... Bg6 {[%clk 0:01:16.1]}
25. f3 {[%clk 0:01:08.2]} 25... Rc8 {[%clk 0:01:08.7]} 26. Ne1 {[%clk
0:00:56.1]} 26... Nc3 {[%clk 0:01:00]} 27. Bxg6 {[%clk 0:00:53.6]} 27... hxg6
{[%clk 0:01:00.9]} 28. Nxc3 {[%clk 0:00:44.9]} 28... Rxc3 {[%clk 0:01:01.8]} 29.
Kf2 {[%clk 0:00:45.2]} 29... f5 {[%clk 0:00:53.1]} 30. gxf5 {[%clk 0:00:38.6]}
30... gxf5 {[%clk 0:00:52.1]} 31. Ke2 {[%clk 0:00:31.5]} 31... f4 {[%clk
0:00:37.6]} 32. exf4 {[%clk 0:00:25.3]} 32... Bf6 {[%clk 0:00:37.6]} 33. Rd1
{[%clk 0:00:24.2]} 33... Kf7 {[%clk 0:00:30]} 34. g3 {[%clk 0:00:18.5]} 34... a5
{[%clk 0:00:27.3]} 0-1

[Event "Early-Titled-Tuesday-Blitz-October-03-2023"]
[Site "Chess.com"]
[Date "2023.10.03"]
[Round "6"]
[White "grzechu96"]
[Black "RobertoJBM"]
[Result "1-0"]
[WhiteElo "2680"]
[BlackElo "2799"]
[TimeControl "180+1"]
[EndTime "9:06:46 PDT"]
[Termination "grzechu96 won by resignation"]

1. e4 {[%clk 0:03:00.9]} 1... c6 {[%clk 0:03:00.4]} 2. d4 {[%clk 0:02:59.5]}
2... d5 {[%clk 0:03:01.3]} 3. Nc3 {[%clk 0:02:53.2]} 3... dxe4 {[%clk
0:03:01.4]} 4. Nxe4 {[%clk 0:02:54.1]} 4... Nd7 {[%clk 0:03:01.8]} 5. Ng5 {[%clk
0:02:44.3]} 5... Ngf6 {[%clk 0:03:01.7]} 6. Bd3 {[%clk 0:02:44]} 6... e6 {[%clk
0:03:00.7]} 7. N1f3 {[%clk 0:02:43.4]} 7... Bd6 {[%clk 0:03:00.6]} 8. Qe2 {[%clk
0:02:40]} 8... h6 {[%clk 0:03:00.6]} 9. Ne4 {[%clk 0:02:40.4]} 9... Nxe4 {[%clk
0:03:00.7]} 10. Qxe4 {[%clk 0:02:41.3]} 10... Qc7 {[%clk 0:03:01.1]} 11. Bd2
{[%clk 0:02:30.2]} 11... b6 {[%clk 0:02:58.8]} 12. Qg4 {[%clk 0:02:20.4]} 12...
g5 {[%clk 0:02:56]} 13. Qh3 {[%clk 0:02:20.8]} 13... Rg8 {[%clk 0:02:54.5]} 14.
Bh7 {[%clk 0:01:28.7]} 14... g4 {[%clk 0:02:20.1]} 15. Qxh6 {[%clk 0:01:15.7]}
15... Bf8 {[%clk 0:02:16.7]} 16. Qf4 {[%clk 0:00:52.8]} 16... Qxf4 {[%clk
0:02:10.2]} 17. Bxf4 {[%clk 0:00:53.7]} 17... Rg7 {[%clk 0:01:27.1]} 18. Be4
{[%clk 0:00:53.7]} 18... gxf3 {[%clk 0:01:18.5]} 19. Bxc6 {[%clk 0:00:54]} 19...
fxg2 {[%clk 0:01:10]} 20. Rg1 {[%clk 0:00:52.4]} 20... e5 {[%clk 0:01:10]} 21.
Bxe5 {[%clk 0:00:48.9]} 21... f6 {[%clk 0:00:58.8]} 22. Bc7 {[%clk 0:00:33.2]}
22... Re7+ {[%clk 0:00:31.6]} 23. Kd2 {[%clk 0:00:32.5]} 23... Bh6+ {[%clk
0:00:31]} 24. Kc3 {[%clk 0:00:32.8]} 24... Ba6 {[%clk 0:00:23.4]} 25. Bxa8
{[%clk 0:00:30.3]} 25... Nc5 {[%clk 0:00:21.1]} 26. Rae1 {[%clk 0:00:11.6]}
26... Ne6 {[%clk 0:00:11.7]} 27. Bd6 {[%clk 0:00:11.4]} 27... Bf1 {[%clk
0:00:05]} 28. Bxe7 {[%clk 0:00:11.1]} 28... Kxe7 {[%clk 0:00:04.9]} 29. Bd5
{[%clk 0:00:11]} 29... Kd6 {[%clk 0:00:04.5]} 30. Bxe6 {[%clk 0:00:11.3]} 30...
Bf4 {[%clk 0:00:04.5]} 31. Bh3 {[%clk 0:00:10.6]} 1-0

[Event "Early-Titled-Tuesday-Blitz-October-03-2023"]
[Site "Chess.com"]
[Date "2023.10.03"]
[Round "6"]
[White "vladgoncharov"]
[Black "ViktoriyaTarasova"]
[Result "1-0"]
[WhiteElo "2516"]
[BlackElo "2382"]
[TimeControl "180+1"]
[EndTime "9:06:46 PDT"]
[Termination "vladgoncharov won on time"]

1. d4 {[%clk 0:03:00.9]} 1... Nf6 {[%clk 0:02:58.7]} 2. c4 {[%clk 0:03:00.6]}
2... e6 {[%clk 0:02:58.3]} 3. Nf3 {[%clk 0:03:00]} 3... b6 {[%clk 0:02:58.2]} 4.
g3 {[%clk 0:02:59.8]} 4... Ba6 {[%clk 0:02:57]} 5. Qc2 {[%clk 0:02:58.2]} 5...
c5 {[%clk 0:02:55.7]} 6. Bg2 {[%clk 0:02:57.4]} 6... Bb7 {[%clk 0:02:53.9]} 7.
dxc5 {[%clk 0:02:57.1]} 7... bxc5 {[%clk 0:02:50.7]} 8. O-O {[%clk 0:02:57.1]}
8... Be7 {[%clk 0:02:50.7]} 9. Nc3 {[%clk 0:02:56.5]} 9... O-O {[%clk
0:02:49.5]} 10. Rd1 {[%clk 0:02:54.7]} 10... d6 {[%clk 0:02:49.6]} 11. a3 {[%clk
0:02:50]} 11... Nbd7 {[%clk 0:02:45.4]} 12. b4 {[%clk 0:02:45.9]} 12... a6
{[%clk 0:02:11.6]} 13. Bf4 {[%clk 0:02:44.8]} 13... Qc7 {[%clk 0:02:08.9]} 14.
b5 {[%clk 0:02:38.2]} 14... a5 {[%clk 0:01:53]} 15. a4 {[%clk 0:02:37.4]} 15...
Nb6 {[%clk 0:01:50.8]} 16. Nd2 {[%clk 0:02:29.6]} 16... Bxg2 {[%clk 0:01:23.7]}
17. Kxg2 {[%clk 0:02:29.3]} 17... Nh5 {[%clk 0:01:24.4]} 18. Qe4 {[%clk
0:02:17.3]} 18... Nxf4+ {[%clk 0:01:20.3]} 19. Qxf4 {[%clk 0:02:15.5]} 19... Bf6
{[%clk 0:01:12.5]} 20. Nde4 {[%clk 0:02:13.9]} 20... Be5 {[%clk 0:01:09.7]} 21.
Qh4 {[%clk 0:02:05]} 21... h6 {[%clk 0:00:58.1]} 22. f4 {[%clk 0:01:46.7]} 22...
Bd4 {[%clk 0:00:50.6]} 23. g4 {[%clk 0:01:38.5]} 23... Nxc4 {[%clk 0:00:46.8]}
24. g5 {[%clk 0:01:26.6]} 24... Ne3+ {[%clk 0:00:39.2]} 25. Kf3 {[%clk
0:01:25.5]} 25... Nf5 {[%clk 0:00:30.4]} 26. Qh3 {[%clk 0:01:22]} 26... Qb7
{[%clk 0:00:23.8]} 27. Rac1 {[%clk 0:01:08.3]} 27... Kh7 {[%clk 0:00:20.9]} 28.
e3 {[%clk 0:00:56.8]} 28... Bxe3 {[%clk 0:00:16.3]} 29. gxh6 {[%clk 0:00:46.9]}
29... gxh6 {[%clk 0:00:05.8]} 30. Rc2 {[%clk 0:00:43]} 30... Bd4 {[%clk
0:00:05.2]} 31. Ke2 {[%clk 0:00:39.5]} 31... Qe7 {[%clk 0:00:03.5]} 32. Ng5+
{[%clk 0:00:27.6]} 32... Kg6 {[%clk 0:00:02.3]} 33. Nf3 {[%clk 0:00:27.7]} 33...
Kh7 {[%clk 0:00:02]} 34. Ne4 {[%clk 0:00:26.4]} 34... Rg8 {[%clk 0:00:01.5]} 35.
Kd3 {[%clk 0:00:22.3]} 1-0

[Event "Early-Titled-Tuesday-Blitz-October-03-2023"]
[Site "Chess.com"]
[Date "2023.10.03"]
[Round "6"]
[White "FMVolodymyrSakun"]
[Black "a-z30"]
[Result "1-0"]
[WhiteElo "2654"]
[BlackElo "2502"]
[TimeControl "180+1"]
[EndTime "9:06:49 PDT"]
[Termination "FMVolodymyrSakun won on time"]

1. e4 {[%clk 0:03:00.9]} 1... d6 {[%clk 0:02:59.1]} 2. d4 {[%clk 0:03:00.8]}
2... Nf6 {[%clk 0:02:59.7]} 3. Nc3 {[%clk 0:03:00.7]} 3... g6 {[%clk 0:03:00.2]}
4. Nf3 {[%clk 0:02:58.8]} 4... Bg7 {[%clk 0:03:00.2]} 5. h3 {[%clk 0:02:58.9]}
5... O-O {[%clk 0:03:00.3]} 6. Be2 {[%clk 0:02:59.4]} 6... Nc6 {[%clk
0:02:57.3]} 7. d5 {[%clk 0:02:59.1]} 7... Ne5 {[%clk 0:02:57.1]} 8. Nxe5 {[%clk
0:02:55]} 8... dxe5 {[%clk 0:02:57.2]} 9. Bg5 {[%clk 0:02:55.2]} 9... h6 {[%clk
0:02:54]} 10. Be3 {[%clk 0:02:50.7]} 10... e6 {[%clk 0:02:49.8]} 11. Qd2 {[%clk
0:02:50.9]} 11... exd5 {[%clk 0:02:47.4]} 12. exd5 {[%clk 0:02:51.8]} 12... Kh7
{[%clk 0:02:36.6]} 13. O-O-O {[%clk 0:02:47.4]} 13... Ne8 {[%clk 0:02:08.6]} 14.
f4 {[%clk 0:02:43.4]} 14... exf4 {[%clk 0:01:54.1]} 15. Bxf4 {[%clk 0:02:44.3]}
15... Nd6 {[%clk 0:01:54.3]} 16. g4 {[%clk 0:02:39.9]} 16... Re8 {[%clk
0:01:34.5]} 17. Bd3 {[%clk 0:02:37.6]} 17... Qf6 {[%clk 0:01:33.3]} 18. Rhf1
{[%clk 0:02:31.2]} 18... Qe7 {[%clk 0:01:03]} 19. Rde1 {[%clk 0:02:27.4]} 19...
Qf8 {[%clk 0:01:02.7]} 20. Bxd6 {[%clk 0:02:11.7]} 20... Rxe1+ {[%clk
0:00:53.5]} 21. Qxe1 {[%clk 0:02:09.9]} 21... cxd6 {[%clk 0:00:54.4]} 22. Ne4
{[%clk 0:02:07.4]} 22... Qe7 {[%clk 0:00:49.2]} 23. Qf2 {[%clk 0:01:54.3]} 23...
f5 {[%clk 0:00:39.6]} 24. Ng3 {[%clk 0:01:25.7]} 24... Qe5 {[%clk 0:00:28.9]}
25. c3 {[%clk 0:01:22]} 25... Bd7 {[%clk 0:00:11.1]} 26. gxf5 {[%clk 0:01:20.8]}
26... Rf8 {[%clk 0:00:09.4]} 27. fxg6+ {[%clk 0:01:14.5]} 27... Kh8 {[%clk
0:00:08.5]} 28. Nf5 {[%clk 0:00:52.9]} 28... Qxd5 {[%clk 0:00:07.5]} 29. Qf3
{[%clk 0:00:47]} 29... Qxa2 {[%clk 0:00:06.5]} 30. Qh5 {[%clk 0:00:40.3]} 30...
Qa1+ {[%clk 0:00:06]} 31. Kc2 {[%clk 0:00:40.6]} 31... Qa4+ {[%clk 0:00:06]} 32.
Kd2 {[%clk 0:00:41]} 32... Qa2 {[%clk 0:00:03.8]} 33. Kc2 {[%clk 0:00:28.6]}
33... Ba4+ {[%clk 0:00:02.2]} 34. Kc1 {[%clk 0:00:23.9]} 34... Qa1+ {[%clk
0:00:02.1]} 35. Bb1 {[%clk 0:00:24]} 35... Bb3 {[%clk 0:00:01.6]} 36. Qe2 {[%clk
0:00:20.9]} 36... Ba2 {[%clk 0:00:01]} 37. Qc2 {[%clk 0:00:20.8]} 1-0

[Event "Early-Titled-Tuesday-Blitz-October-03-2023"]
[Site "Chess.com"]
[Date "2023.10.03"]
[Round "6"]
[White "JiiHart"]
[Black "tolimachess"]
[Result "0-1"]
[WhiteElo "2195"]
[BlackElo "2430"]
[TimeControl "180+1"]
[EndTime "9:06:52 PDT"]
[Termination "tolimachess won by resignation"]

1. e4 {[%clk 0:03:00.9]} 1... c5 {[%clk 0:02:59.8]} 2. c3 {[%clk 0:03:00.6]}
2... Nf6 {[%clk 0:02:58.4]} 3. e5 {[%clk 0:03:00.3]} 3... Nd5 {[%clk 0:02:59]}
4. d4 {[%clk 0:03:00.2]} 4... cxd4 {[%clk 0:02:59.9]} 5. Nf3 {[%clk 0:03:00]}
5... Nc6 {[%clk 0:03:00.3]} 6. cxd4 {[%clk 0:02:59.3]} 6... d6 {[%clk
0:03:00.4]} 7. Nc3 {[%clk 0:02:56.3]} 7... Nxc3 {[%clk 0:02:58.6]} 8. bxc3
{[%clk 0:02:55.9]} 8... dxe5 {[%clk 0:02:59.2]} 9. d5 {[%clk 0:02:52.9]} 9... e4
{[%clk 0:02:59.2]} 10. dxc6 {[%clk 0:02:50.6]} 10... Qxd1+ {[%clk 0:02:58.4]}
11. Kxd1 {[%clk 0:02:50.5]} 11... exf3 {[%clk 0:02:55.6]} 12. Bb5 {[%clk
0:02:48.6]} 12... b6 {[%clk 0:02:55.1]} 13. c7+ {[%clk 0:01:47.6]} 13... Bd7
{[%clk 0:02:51.9]} 14. Ba6 {[%clk 0:01:45.7]} 14... fxg2 {[%clk 0:02:46.9]} 15.
Rg1 {[%clk 0:01:43.9]} 15... e5 {[%clk 0:02:23.6]} 16. Bb7 {[%clk 0:01:40.7]}
16... Rc8 {[%clk 0:02:13.8]} 17. Bxc8 {[%clk 0:01:39.9]} 17... Bxc8 {[%clk
0:02:14.7]} 18. Rxg2 {[%clk 0:01:37.3]} 18... Kd7 {[%clk 0:02:15.2]} 19. Be3
{[%clk 0:01:30.9]} 19... Bb7 {[%clk 0:02:09.9]} 20. Rg1 {[%clk 0:01:18.4]} 20...
Kxc7 {[%clk 0:02:09.7]} 21. a4 {[%clk 0:01:18.6]} 21... f5 {[%clk 0:02:03.6]}
22. a5 {[%clk 0:01:16.6]} 22... f4 {[%clk 0:02:03.7]} 23. axb6+ {[%clk
0:00:56.3]} 23... axb6 {[%clk 0:02:04.6]} 24. Bc1 {[%clk 0:00:47.1]} 24... g6
{[%clk 0:02:03.4]} 25. Ba3 {[%clk 0:00:41.9]} 25... Bxa3 {[%clk 0:01:47.3]} 26.
Rxa3 {[%clk 0:00:41.8]} 26... Rd8+ {[%clk 0:01:48.2]} 27. Ke2 {[%clk 0:00:34.5]}
27... e4 {[%clk 0:01:33.1]} 28. h4 {[%clk 0:00:33.2]} 28... Bd5 {[%clk
0:01:29.8]} 29. Ra4 {[%clk 0:00:29.2]} 29... b5 {[%clk 0:01:29.6]} 30. Rb4
{[%clk 0:00:29.1]} 30... Bc4+ {[%clk 0:01:29.3]} 31. Rxc4+ {[%clk 0:00:25.2]}
31... bxc4 {[%clk 0:01:30.2]} 32. h5 {[%clk 0:00:24.7]} 32... Rd3 {[%clk
0:01:17]} 33. hxg6 {[%clk 0:00:24.2]} 33... f3+ {[%clk 0:01:16.8]} 34. Ke1
{[%clk 0:00:21.1]} 34... hxg6 {[%clk 0:01:17.4]} 35. Rxg6 {[%clk 0:00:20.8]}
35... Rxc3 {[%clk 0:01:17.6]} 36. Re6 {[%clk 0:00:19.3]} 36... Rd3 {[%clk
0:01:03.6]} 37. Rxe4 {[%clk 0:00:19]} 37... c3 {[%clk 0:01:04]} 38. Rf4 {[%clk
0:00:12.1]} 38... Kd6 {[%clk 0:01:03.5]} 39. Rc4 {[%clk 0:00:11]} 39... Kd5
{[%clk 0:01:03.6]} 40. Rc8 {[%clk 0:00:10.9]} 40... Kd4 {[%clk 0:01:02.7]} 41.
Rc7 {[%clk 0:00:10]} 41... Ke4 {[%clk 0:00:42.8]} 42. Re7+ {[%clk 0:00:09.7]}
42... Kd5 {[%clk 0:00:41.6]} 43. Rd7+ {[%clk 0:00:09.6]} 43... Kc4 {[%clk
0:00:41.8]} 44. Rc7+ {[%clk 0:00:09.2]} 44... Kb3 {[%clk 0:00:42.1]} 45. Rb7+
{[%clk 0:00:05.9]} 45... Kc2 {[%clk 0:00:42]} 46. Rd7 {[%clk 0:00:05.1]} 46...
Rxd7 {[%clk 0:00:41.1]} 0-1

[Event "Early-Titled-Tuesday-Blitz-October-03-2023"]
[Site "Chess.com"]
[Date "2023.10.03"]
[Round "6"]
[White "shimastream"]
[Black "ShiroglanTalibov"]
[Result "1/2-1/2"]
[WhiteElo "2972"]
[BlackElo "2909"]
[TimeControl "180+1"]
[EndTime "9:06:53 PDT"]
[Termination "Game drawn by repetition"]

1. d4 {[%clk 0:03:00.9]} 1... Nf6 {[%clk 0:02:57.8]} 2. Bg5 {[%clk 0:03:00.3]}
2... d5 {[%clk 0:02:53]} 3. Nd2 {[%clk 0:02:59.8]} 3... c6 {[%clk 0:02:49.9]} 4.
e3 {[%clk 0:02:57.2]} 4... Bf5 {[%clk 0:02:49.7]} 5. Bxf6 {[%clk 0:02:56.1]}
5... exf6 {[%clk 0:02:49.1]} 6. Ne2 {[%clk 0:02:56.8]} 6... Nd7 {[%clk
0:02:48.2]} 7. Nc1 {[%clk 0:02:57.5]} 7... Bd6 {[%clk 0:02:46.1]} 8. Bd3 {[%clk
0:02:57.8]} 8... Bxd3 {[%clk 0:02:42.9]} 9. Nxd3 {[%clk 0:02:56.7]} 9... O-O
{[%clk 0:02:43.4]} 10. c4 {[%clk 0:02:56.5]} 10... dxc4 {[%clk 0:02:42.1]} 11.
Nxc4 {[%clk 0:02:56.2]} 11... Bc7 {[%clk 0:02:40.4]} 12. O-O {[%clk 0:02:54.8]}
12... Nb6 {[%clk 0:02:39.6]} 13. Na5 {[%clk 0:02:42.6]} 13... Rb8 {[%clk
0:02:29.4]} 14. Nc5 {[%clk 0:02:40.1]} 14... Qc8 {[%clk 0:02:26.9]} 15. Rc1
{[%clk 0:02:28]} 15... Nd7 {[%clk 0:02:21.7]} 16. Nab3 {[%clk 0:02:20.1]} 16...
Nxc5 {[%clk 0:02:18.3]} 17. Nxc5 {[%clk 0:02:21]} 17... Rd8 {[%clk 0:02:14.2]}
18. b4 {[%clk 0:02:19.2]} 18... a5 {[%clk 0:02:08.4]} 19. a3 {[%clk 0:02:15.7]}
19... axb4 {[%clk 0:02:07.7]} 20. axb4 {[%clk 0:02:16.6]} 20... Qf5 {[%clk
0:02:04.1]} 21. g3 {[%clk 0:02:13.4]} 21... Bd6 {[%clk 0:01:57.5]} 22. Qb3
{[%clk 0:02:08.8]} 22... h5 {[%clk 0:01:56.4]} 23. Qc2 {[%clk 0:02:04.1]} 23...
Qh3 {[%clk 0:01:51.6]} 24. Qe4 {[%clk 0:02:01.5]} 24... Re8 {[%clk 0:01:46.5]}
25. Qf3 {[%clk 0:01:59.6]} 25... h4 {[%clk 0:01:36.5]} 26. Rb1 {[%clk
0:01:50.8]} 26... g6 {[%clk 0:01:33.8]} 27. Rfc1 {[%clk 0:01:49.9]} 27... Kg7
{[%clk 0:01:32.1]} 28. b5 {[%clk 0:01:44.9]} 28... hxg3 {[%clk 0:01:25.1]} 29.
hxg3 {[%clk 0:01:44.4]} 29... Bxc5 {[%clk 0:00:59.2]} 30. Rxc5 {[%clk
0:01:42.8]} 30... Rh8 {[%clk 0:00:58.6]} 31. Qg2 {[%clk 0:01:39.7]} 31... Qg4
{[%clk 0:00:53.1]} 32. bxc6 {[%clk 0:01:03.4]} 32... bxc6 {[%clk 0:00:54]} 33.
Rbc1 {[%clk 0:01:03.6]} 33... Rh6 {[%clk 0:00:43.7]} 34. Rxc6 {[%clk 0:01:02.5]}
34... Rbh8 {[%clk 0:00:43.4]} 35. R6c5 {[%clk 0:00:49]} 35... Rh3 {[%clk
0:00:36.3]} 36. Re1 {[%clk 0:00:41.7]} 36... f5 {[%clk 0:00:36]} 37. Qd5 {[%clk
0:00:31.4]} 37... Qh5 {[%clk 0:00:21.2]} 38. Qe5+ {[%clk 0:00:31.1]} 38... Kh7
{[%clk 0:00:21.7]} 39. Qd5 {[%clk 0:00:27.4]} 39... Kg7 {[%clk 0:00:22]} 40.
Qe5+ {[%clk 0:00:27.5]} 40... Kh7 {[%clk 0:00:22.4]} 41. Qd5 {[%clk 0:00:10.1]}
41... Kg7 {[%clk 0:00:17.2]} 1/2-1/2

[Event "Early-Titled-Tuesday-Blitz-October-03-2023"]
[Site "Chess.com"]
[Date "2023.10.03"]
[Round "6"]
[White "JosefineHeinemann"]
[Black "stepanosinovsky"]
[Result "1-0"]
[WhiteElo "2522"]
[BlackElo "2384"]
[TimeControl "180+1"]
[EndTime "9:06:54 PDT"]
[Termination "JosefineHeinemann won on time"]

1. e4 {[%clk 0:02:57.7]} 1... e5 {[%clk 0:02:57.5]} 2. Nf3 {[%clk 0:02:52.6]}
2... Nc6 {[%clk 0:02:57.9]} 3. Bc4 {[%clk 0:02:40.7]} 3... Nf6 {[%clk
0:02:57.4]} 4. d3 {[%clk 0:02:36.3]} 4... Be7 {[%clk 0:02:56.5]} 5. O-O {[%clk
0:02:35.7]} 5... d5 {[%clk 0:02:55.7]} 6. exd5 {[%clk 0:02:35.2]} 6... Nxd5
{[%clk 0:02:56.6]} 7. Re1 {[%clk 0:02:35.1]} 7... Bg4 {[%clk 0:02:57.3]} 8. h3
{[%clk 0:02:34.9]} 8... Bh5 {[%clk 0:02:57.3]} 9. g4 {[%clk 0:02:28]} 9... Bg6
{[%clk 0:02:57.3]} 10. Nxe5 {[%clk 0:02:28.3]} 10... Nxe5 {[%clk 0:02:58.2]} 11.
Rxe5 {[%clk 0:02:28.6]} 11... Nb6 {[%clk 0:02:58.9]} 12. Bb3 {[%clk 0:02:27.8]}
12... O-O {[%clk 0:02:57.6]} 13. Nc3 {[%clk 0:02:27.2]} 13... Kh8 {[%clk
0:02:54]} 14. Qf3 {[%clk 0:02:23.5]} 14... f5 {[%clk 0:02:22.2]} 15. Qg2 {[%clk
0:02:04.8]} 15... Bd6 {[%clk 0:02:16.9]} 16. Re1 {[%clk 0:02:02.5]} 16... Nd7
{[%clk 0:02:05.9]} 17. g5 {[%clk 0:01:49.1]} 17... f4 {[%clk 0:01:59.7]} 18. Ne4
{[%clk 0:01:33.4]} 18... Ne5 {[%clk 0:01:43.8]} 19. Nxd6 {[%clk 0:01:20.1]}
19... Qxd6 {[%clk 0:00:27.5]} 20. Qd5 {[%clk 0:01:16.9]} 20... Rae8 {[%clk
0:00:23.9]} 21. Kf1 {[%clk 0:00:51.2]} 21... Bf5 {[%clk 0:00:07.6]} 22. Qh1
{[%clk 0:00:17.4]} 22... Qd7 {[%clk 0:00:07.4]} 23. Kg2 {[%clk 0:00:13]} 23...
Ng6 {[%clk 0:00:06.2]} 24. Bd2 {[%clk 0:00:11.9]} 24... Nh4+ {[%clk 0:00:05.7]}
25. Kg1 {[%clk 0:00:09.9]} 25... c6 {[%clk 0:00:03.9]} 26. Rxe8 {[%clk
0:00:09.6]} 26... Rxe8 {[%clk 0:00:04.7]} 27. Re1 {[%clk 0:00:09.6]} 27... Rxe1+
{[%clk 0:00:04.8]} 28. Bxe1 {[%clk 0:00:10.5]} 28... Qe7 {[%clk 0:00:05.2]} 29.
Bd2 {[%clk 0:00:09.4]} 29... Qe2 {[%clk 0:00:05]} 30. Bxf4 {[%clk 0:00:08.8]}
30... Nf3+ {[%clk 0:00:03.5]} 31. Kg2 {[%clk 0:00:09.3]} 31... Ne1+ {[%clk
0:00:01.7]} 32. Kg3 {[%clk 0:00:08.6]} 1-0